bitfinex-derivatives/quotes_BNBF0:USTF0_20250710
["timestamp","ask_amount","ask_price","bid_price","bid_amount"]
[1752139671674,1.502037,671.01,669.65,1.279]
[1752139671874,1.502037,671.0,669.65,1.279]
[1752139672175,1.053543,671.28,669.65,1.279]
[1752139672372,1.5004135,671.27,669.65,1.279]
[1752139672576,1.5004135,671.26,669.65,1.279]
[1752139672876,1.5004135,671.25,669.65,1.279]
[1752139673073,1.5004135,671.24,669.65,1.279]
[1752139673277,1.5004135,671.23,669.65,1.279]
[1752139673473,1.5004135,671.22,669.65,1.279]
[1752139673677,1.5004135,671.21,669.65,1.279]
[1752139673973,1.5004135,671.2,669.65,1.279]
[1752139674172,1.5004135,671.19,669.65,1.279]
[1752139674378,1.5004135,671.18,669.65,1.279]
[1752139674590,1.5004135,671.17,669.65,1.279]
[1752139674774,1.5004135,671.16,669.65,1.279]
[1752139674977,1.5004135,671.15,669.65,1.279]
[1752139675178,1.5004135,671.14,669.65,1.279]
[1752139675374,1.5004135,671.13,669.65,1.279]
[1752139675581,1.5004135,671.12,669.65,1.279]
[1752139675778,1.5004135,671.11,669.65,1.279]
[1752139675981,1.5004135,671.1,669.65,1.279]
[1752139676181,1.5004135,671.09,669.65,1.279]
[1752139676384,1.5004135,671.08,669.65,1.279]
[1752139676581,1.5004135,671.07,669.65,1.279]
[1752139676881,1.5004135,671.06,669.65,1.279]
[1752139677079,1.5004135,671.05,669.65,1.279]
[1752139677278,1.5004135,671.04,669.65,1.279]
[1752139677480,0.25945075,671.21,669.65,1.279]
[1752139677678,1.5006999,671.2,669.65,1.279]
[1752139677881,1.5006999,671.19,669.65,1.279]
[1752139678079,1.5006999,671.18,669.65,1.279]
[1752139678282,1.5006999,671.17,669.65,1.279]
[1752139678478,1.5006999,671.16,669.65,1.279]
[1752139678783,1.5006999,671.15,669.65,1.279]
[1752139679078,0.25945075,671.21,669.65,1.279]
[1752139679079,1.5006999,671.14,669.65,1.279]
[1752139679284,1.5006999,671.13,669.65,1.279]
[1752139679483,1.5006999,671.12,669.65,1.279]
[1752139679682,1.5006999,671.11,669.65,1.279]
[1752139679979,1.5006999,671.1,669.65,1.279]
[1752139680178,1.5006999,671.09,669.65,1.279]
[1752139680378,1.5006999,671.08,669.65,1.279]
[1752139680579,1.5006999,671.07,669.65,1.279]
[1752139680784,1.5006999,671.06,669.65,1.279]
[1752139680984,1.5006999,671.05,669.65,1.279]
[1752139681185,1.5006999,671.04,669.65,1.279]
[1752139681479,1.5006999,671.03,669.65,1.279]
[1752139681686,0.25945075,671.21,669.65,1.279]
[1752139681881,1.5009373,671.2,669.65,1.279]
[1752139682081,1.5009373,671.19,669.65,1.279]
[1752139682280,1.5009373,671.18,669.65,1.279]
[1752139682480,1.5009373,671.17,669.65,1.279]
[1752139682681,1.5009373,671.16,669.65,1.279]
[1752139682882,1.5009373,671.15,669.65,1.279]
[1752139683185,1.5009373,671.14,669.65,1.279]
[1752139683382,1.5009373,671.13,669.65,1.279]
[1752139683586,1.5009373,671.12,669.65,1.279]
[1752139683784,1.5009373,671.11,669.65,1.279]
[1752139684084,1.5009373,671.1,669.65,1.279]
[1752139684286,1.5009373,671.09,669.65,1.279]
[1752139684482,1.5009373,671.08,669.65,1.279]
[1752139684781,1.5009373,671.07,669.65,1.279]
[1752139684986,1.5009373,671.06,669.65,1.279]
[1752139685181,1.5009373,671.05,669.65,1.279]
[1752139685484,1.5009373,671.04,669.65,1.279]
[1752139685683,1.5009373,671.03,669.65,1.279]
[1752139685880,1.5009373,671.02,669.65,1.279]
[1752139686083,0.25945075,671.21,669.65,1.279]
[1752139686283,1.5018575,671.2,669.65,1.279]
[1752139686482,1.5018575,671.19,669.65,1.279]
[1752139686685,1.5018575,671.18,669.65,1.279]
[1752139686886,1.5018575,671.17,669.65,1.279]
[1752139687082,1.5018575,671.16,669.65,1.279]
[1752139687287,1.5018575,671.15,669.65,1.279]
[1752139687488,1.5018575,671.14,669.65,1.279]
[1752139687787,1.5018575,671.13,669.65,1.279]
[1752139687987,1.5018575,671.12,669.65,1.279]
[1752139688288,1.5018575,671.11,669.65,1.279]
[1752139688483,1.5018575,671.1,669.65,1.279]
[1752139688688,1.5018575,671.09,669.65,1.279]
[1752139688986,1.5018575,671.08,669.65,1.279]
[1752139689283,1.5018575,671.07,669.65,1.279]
[1752139689490,1.5018575,671.06,669.65,1.279]
[1752139689689,1.5018575,671.05,669.65,1.279]
[1752139689989,1.5018575,671.04,669.65,1.279]
[1752139690185,1.5018575,671.03,669.65,1.279]
[1752139690486,0.25945075,671.21,669.65,1.279]
[1752139690687,1.5018144,671.2,669.65,1.279]
[1752139690886,1.5018144,671.19,669.65,1.279]
[1752139691087,1.5018144,671.18,669.67,5.5793497]
[1752139691288,1.5018144,671.17,669.67,5.5793497]
[1752139691493,1.5018144,671.16,669.67,5.5793497]
[1752139691692,1.5018144,671.15,669.73,5.5793497]
[1752139691891,1.5018144,671.14,669.73,5.5793497]
[1752139692089,1.5018144,671.13,669.73,5.5793497]
[1752139692292,1.5018144,671.12,669.73,5.5793497]
[1752139692492,1.5018144,671.11,669.73,5.5793497]
[1752139692793,1.5018144,671.1,669.73,5.5793497]
[1752139693093,1.5018144,671.09,669.72,5.5793497]
[1752139693292,1.5018144,671.08,669.72,5.5793497]
[1752139693492,1.5018144,671.07,669.72,5.5793497]
[1752139693693,1.5018144,671.06,669.72,5.5793497]
[1752139693993,1.5018144,671.05,669.72,5.5793497]
[1752139694188,0.25945075,671.21,669.65,1.279]
[1752139694189,1.5018144,671.04,669.76,5.5793497]
[1752139694389,0.25945075,671.21,669.76,5.5793497]
[1752139694695,1.5018079,671.2,669.88,5.5793497]
[1752139694993,1.5018079,671.19,669.88,5.5793497]
[1752139695190,1.5018079,671.18,669.95,5.5793497]
[1752139695392,1.5018079,671.17,669.95,5.5793497]
[1752139695593,1.5018079,671.16,669.95,5.5793497]
[1752139695792,1.5018079,671.15,669.65,1.279]
[1752139695995,1.5018079,671.14,669.65,1.279]
[1752139696292,0.25945075,671.21,669.65,1.279]
[1752139696293,1.5018079,671.13,669.65,1.279]
[1752139696494,1.5018079,671.12,669.65,1.279]
[1752139696789,1.5018079,671.11,669.65,1.279]
[1752139696993,1.5018079,671.1,669.65,1.279]
[1752139697190,1.5018079,671.09,669.65,1.279]
[1752139697389,1.5018079,671.08,669.65,1.279]
[1752139697688,1.5018079,671.07,669.65,1.279]
[1752139697992,1.5018079,671.06,669.65,1.279]
[1752139698589,0.25945075,671.21,669.65,1.279]
[1752139699690,2.2968955,672.77,669.65,1.279]
[1752139699890,2.2968955,672.76,669.65,1.279]
[1752139700093,0.25927002,671.29,669.65,1.279]
[1752139700293,2.2968955,672.74,669.65,1.279]
[1752139700590,0.25927292,671.29,669.65,1.279]
[1752139700790,2.2968955,672.72,669.65,1.279]
[1752139700995,0.25927485,671.29,669.65,1.279]
[1752139701289,2.2968955,672.7,669.65,1.279]
[1752139701493,2.2980094,672.69,669.65,1.279]
[1752139701694,0.25927678,671.29,669.65,1.279]
[1752139701889,2.2980094,672.67,669.65,1.279]
[1752139702092,0.25927968,671.29,669.65,1.279]
[1752139702494,2.2980094,672.64,669.65,1.279]
[1752139702791,0.25927968,671.3,669.65,1.279]
[1752139702995,2.2980094,672.62,669.65,1.279]
[1752139703192,0.25928161,671.9,669.65,1.279]
[1752139703491,1.0551692,671.89,669.65,1.279]
[1752139703790,1.0551692,671.88,669.65,1.279]
[1752139703991,2.5571317,671.87,669.65,1.279]
[1752139704196,1.6672724,671.52,669.65,1.279]
[1752139704397,1.6672724,671.37,669.65,1.279]
[1752139704597,1.5019625,671.36,669.65,1.279]
[1752139704793,1.5019625,671.35,669.65,1.279]
[1752139705095,1.5019625,671.34,669.65,1.279]
[1752139705397,1.5019625,671.33,669.65,1.279]
[1752139705592,1.5019625,671.32,669.65,1.279]
[1752139705797,1.5019625,671.31,669.65,1.279]
[1752139705998,1.5019625,671.3,669.65,1.279]
[1752139706201,1.5019625,671.29,669.65,1.279]
[1752139706400,1.5019625,671.28,669.65,1.279]
[1752139706593,1.5019625,671.27,669.65,1.279]
[1752139706898,1.5019625,671.26,669.65,1.279]
[1752139707094,1.5019625,671.25,669.65,1.279]
[1752139707299,1.5019625,671.24,669.65,1.279]
[1752139707600,1.5019625,671.23,669.65,1.279]
[1752139707895,1.5019625,671.22,669.65,1.279]
[1752139708099,1.5019625,671.21,669.65,1.279]
[1752139708296,1.5019625,671.2,669.65,1.279]
[1752139708596,1.5019625,671.19,669.65,1.279]
[1752139708794,1.5019625,671.18,669.65,1.279]
[1752139708998,1.5019625,671.17,669.65,1.279]
[1752139709194,1.5019625,671.16,669.65,1.279]
[1752139709499,1.5019625,671.15,669.65,1.279]
[1752139709696,1.5019625,671.14,669.65,1.279]
[1752139709899,1.5019625,671.13,669.65,1.279]
[1752139710097,1.5019625,671.12,669.65,1.279]
[1752139710297,1.5019625,671.11,669.65,1.279]
[1752139710498,1.5019625,671.1,669.65,1.279]
[1752139710697,1.5019625,671.09,669.65,1.279]
[1752139710901,1.5019625,671.08,669.65,1.279]
[1752139711100,1.5019625,671.07,669.65,1.279]
[1752139711401,1.5019625,671.06,669.65,1.279]
[1752139711602,1.5019625,671.05,669.65,1.279]
[1752139711804,1.5019625,671.04,669.65,1.279]
[1752139711999,1.5019625,671.03,669.65,1.279]
[1752139712298,1.0543462,671.39,669.65,1.279]
[1752139712504,2.5561559,671.38,669.65,1.279]
[1752139712700,2.5561559,671.37,669.65,1.279]
[1752139712900,2.5561559,671.36,669.65,1.279]
[1752139713104,2.5561559,671.35,669.65,1.279]
[1752139713302,2.5561559,671.34,669.65,1.279]
[1752139713501,2.5561559,671.33,669.65,1.279]
[1752139713701,2.5561559,671.32,669.65,1.279]
[1752139713905,2.5561559,671.31,669.65,1.279]
[1752139714106,1.5018097,671.3,669.65,1.279]
[1752139714406,2.5560122,671.29,669.65,1.279]
[1752139714609,1.5018097,671.28,669.75,5.5831104]
[1752139714801,1.5018097,671.27,669.75,5.5831104]
[1752139715004,1.5018097,671.26,669.75,5.5831104]
[1752139715205,1.5018097,671.25,669.75,5.5831104]
[1752139715405,1.5018097,671.24,669.75,5.5831104]
[1752139715606,1.5018097,671.23,669.85,5.5831104]
[1752139715805,1.5018097,671.22,669.85,5.5831104]
[1752139716003,1.5018097,671.21,669.85,5.5831104]
[1752139716205,1.5018097,671.2,669.85,5.5831104]
[1752139716403,1.5018097,671.19,669.85,5.5831104]
[1752139716603,1.5018097,671.18,669.97,5.5831104]
[1752139716802,1.5018097,671.17,669.97,5.5831104]
[1752139717105,3.3345449,671.75,669.66,7.8163545]
[1752139717106,1.0542025,671.27,670.02,5.5831104]
[1752139717405,1.501311,671.26,670.02,5.5831104]
[1752139717606,1.501311,671.25,670.02,5.5831104]
[1752139717806,1.501311,671.24,670.02,5.5831104]
[1752139718007,1.501311,671.23,670.02,5.5831104]
[1752139718302,1.501311,671.22,669.97,5.5831104]
[1752139718507,1.501311,671.21,669.97,5.5831104]
[1752139718705,1.501311,671.2,669.97,5.5831104]
[1752139718904,1.501311,671.19,669.97,5.5831104]
[1752139719108,1.501311,671.18,669.97,5.5831104]
[1752139719309,1.501311,671.17,669.89,5.5831104]
[1752139719504,1.6672724,671.46,669.89,5.5831104]
[1752139719706,1.5010689,671.45,669.89,5.5831104]
[1752139719909,1.5010689,671.44,669.89,5.5831104]
[1752139720109,1.5010689,671.43,669.89,5.5831104]
[1752139720307,1.5010689,671.42,669.88,5.5831104]
[1752139720507,1.5010689,671.41,669.88,5.5831104]
[1752139720705,1.5010689,671.4,669.93,5.5831104]
[1752139720910,1.5010689,671.39,669.93,5.5831104]
[1752139721109,1.5010689,671.38,669.93,5.5831104]
[1752139721306,1.5010689,671.37,669.93,5.5831104]
[1752139721510,1.0540565,671.52,669.93,5.5831104]
[1752139721708,1.6654327,671.46,669.93,5.5831104]
[1752139721911,1.5008622,671.45,669.94,5.5831104]
[1752139722207,1.5008622,671.44,669.94,5.5831104]
[1752139722412,1.5008622,671.43,669.84,5.5831104]
[1752139722615,1.5008622,671.42,669.84,5.5831104]
[1752139722813,1.5008622,671.41,669.84,5.5831104]
[1752139723013,1.5008622,671.4,669.62,7.8163545]
[1752139723211,1.5008622,671.39,669.38,5.5831104]
[1752139723411,1.5008622,671.38,669.38,5.5831104]
[1752139723612,1.5008622,671.37,669.38,5.5831104]
[1752139723815,1.5008622,671.36,669.38,5.5831104]
[1752139724015,1.5008622,671.35,669.35,5.5831104]
[1752139724213,1.5008622,671.34,669.35,5.5831104]
[1752139724417,1.5008622,671.33,669.36,1.322]
[1752139724614,1.5008622,671.32,669.36,1.322]
[1752139724913,1.5008622,671.31,669.36,1.322]
[1752139725117,1.5008622,671.3,669.36,1.322]
[1752139725312,1.5008622,671.29,669.36,1.322]
[1752139725512,1.5008622,671.28,669.36,1.322]
[1752139725713,1.5008622,671.27,669.36,1.322]
[1752139725919,1.5008622,671.26,669.36,1.322]
[1752139726117,1.5008622,671.25,669.36,1.322]
[1752139726320,1.5008622,671.24,669.36,1.322]
[1752139726518,1.5008622,671.23,669.36,1.322]
[1752139726814,1.5008622,671.22,669.36,1.322]
[1752139727020,1.5008622,671.21,669.36,1.322]
[1752139727221,1.0540565,671.59,669.36,1.322]
[1752139727222,1.5008622,671.2,669.36,1.322]
[1752139727520,1.5008622,671.19,669.36,1.322]
[1752139727722,1.6654327,671.53,669.36,1.322]
[1752139727723,1.5008622,671.18,669.36,1.322]
[1752139728019,1.5008622,671.17,669.36,1.322]
[1752139728223,1.5008622,671.16,669.36,1.322]
[1752139728423,1.5008622,671.15,669.36,1.322]
[1752139728620,1.5008622,671.14,669.36,1.322]
[1752139728823,1.5008622,671.13,669.36,1.322]
[1752139729025,1.5008622,671.12,669.36,1.322]
[1752139729323,1.5008622,671.11,669.36,1.322]
[1752139729626,1.6654327,671.52,669.36,1.322]
[1752139729824,1.50026489,671.51,669.36,1.322]
[1752139730120,1.50026489,671.5,669.36,1.322]
[1752139730319,1.50026489,671.49,669.36,1.322]
[1752139730520,1.50026489,671.48,669.36,1.322]
[1752139730822,1.50026489,671.47,669.36,1.322]
[1752139731021,1.50026489,671.46,669.36,1.322]
[1752139731325,1.50026489,671.45,669.36,1.322]
[1752139731521,1.50026489,671.44,669.36,1.322]
[1752139731819,1.50026489,671.43,669.36,1.322]
[1752139732024,1.50026489,671.42,669.36,1.322]
[1752139732223,1.50026489,671.41,669.36,1.322]
[1752139732419,1.50026489,671.4,669.36,1.322]
[1752139732720,1.50026489,671.39,669.36,1.322]
[1752139732919,1.50026489,671.38,669.47,5.5831104]
[1752139733124,1.50026489,671.37,669.47,5.5831104]
[1752139733425,1.50026489,671.36,669.48,5.5831104]
[1752139733623,1.50026489,671.35,669.48,5.5831104]
[1752139733827,1.50026489,671.34,669.51,5.5831104]
[1752139734025,1.50026489,671.33,669.51,5.5831104]
[1752139734226,1.50026489,671.32,669.51,5.5831104]
[1752139734427,1.50026489,671.31,669.71,5.5831104]
[1752139734625,1.50026489,671.3,669.71,5.5831104]
[1752139734825,1.50026489,671.29,669.71,5.5831104]
[1752139735031,1.50026489,671.28,669.76,5.5831104]
[1752139735228,1.50026489,671.27,669.76,5.5831104]
[1752139735424,1.50026489,671.26,669.74,5.5831104]
[1752139735625,1.50026489,671.25,669.74,5.5831104]
[1752139735925,1.50026489,671.24,669.74,5.5831104]
[1752139736127,1.0540565,671.56,669.74,5.5831104]
[1752139736324,1.4998178,671.55,669.74,5.5831104]
[1752139736530,1.4998178,671.54,669.74,5.5831104]
[1752139736729,1.4998178,671.53,669.74,5.5831104]
[1752139736924,1.4998178,671.52,669.74,5.5831104]
[1752139737130,1.4998178,671.51,669.74,5.5831104]
[1752139737330,1.4998178,671.5,669.74,5.5831104]
[1752139737528,1.4998178,671.49,669.71,5.5831104]
[1752139737727,1.4998178,671.48,669.71,5.5831104]
[1752139738031,1.4998178,671.47,669.71,5.5831104]
[1752139738231,1.4998178,671.46,669.71,5.5831104]
[1752139738528,1.4998178,671.45,669.71,5.5831104]
[1752139738732,1.4998178,671.44,669.69,5.5831104]
[1752139738934,1.4998178,671.43,669.69,5.5831104]
[1752139739130,1.4998178,671.42,669.69,5.5831104]
[1752139739329,1.4998178,671.41,669.69,5.5831104]
[1752139739629,1.4998178,671.4,669.69,5.5831104]
[1752139739829,1.4998178,671.39,669.69,5.5831104]
[1752139740028,1.4998178,671.38,669.69,5.5831104]
[1752139740235,1.4998178,671.37,669.75,5.5831104]
[1752139740535,1.4998178,671.36,669.75,5.5831104]
[1752139740730,1.4998178,671.35,669.83,5.5831104]
[1752139740933,1.4998178,671.34,669.83,5.5831104]
[1752139741133,1.4998178,671.33,669.83,5.5831104]
[1752139741333,1.4998178,671.32,669.83,5.5831104]
[1752139741529,1.4998178,671.31,669.83,5.5831104]
[1752139741734,1.4998178,671.3,669.83,5.5831104]
[1752139741934,1.4998178,671.29,669.83,5.5831104]
[1752139742130,1.4998178,671.28,669.83,5.5831104]
[1752139742331,1.4998178,671.27,669.83,5.5831104]
[1752139742536,1.4998178,671.26,669.83,5.5831104]
[1752139742733,1.0540565,671.49,669.83,5.5831104]
[1752139743031,1.6654327,671.56,669.86,5.5831104]
[1752139743032,2.5538184,671.48,669.86,5.5831104]
[1752139743233,2.5538184,671.47,669.86,5.5831104]
[1752139743435,1.4997619,671.46,669.86,5.5831104]
[1752139743634,1.4997619,671.45,669.86,5.5831104]
[1752139743933,1.4997619,671.44,669.86,5.5831104]
[1752139744132,1.4997619,671.43,669.86,5.5831104]
[1752139744336,1.4997619,671.42,669.86,5.5831104]
[1752139744533,1.4997619,671.41,669.86,5.5831104]
[1752139744734,1.4997619,671.4,669.86,5.5831104]
[1752139744935,1.4997619,671.39,669.9,5.5831104]
[1752139745138,1.4997619,671.38,669.9,5.5831104]
[1752139745338,1.4997619,671.37,669.99,5.5831104]
[1752139745538,1.4997619,671.36,669.99,5.5831104]
[1752139745736,1.4997619,671.35,669.99,5.5831104]
[1752139745935,1.4997619,671.34,670.02,5.5831104]
[1752139746238,1.0540565,671.51,670.02,5.5831104]
[1752139746239,1.4997619,671.33,670.02,5.5831104]
[1752139746436,1.4997619,671.32,670.01,5.5831104]
[1752139746635,1.4997619,671.31,670.01,5.5831104]
[1752139746839,1.4997619,671.3,670.01,5.5831104]
[1752139747037,1.4997619,671.29,670.01,5.5831104]
[1752139747238,1.4997619,671.28,670.01,5.5831104]
[1752139747443,1.4997619,671.27,670.1,5.5831104]
[1752139747641,1.4997619,671.26,670.1,5.5831104]
[1752139747841,1.0540565,671.5,670.1,5.5831104]
[1752139748038,2.5542367,671.49,670.1,5.5831104]
[1752139748341,2.5542367,671.48,670.1,5.5831104]
[1752139748538,2.5542367,671.47,670.19,5.5831104]
[1752139748840,2.5542367,671.46,670.19,5.5831104]
[1752139749039,2.5542367,671.45,670.19,5.5831104]
[1752139749242,2.5542367,671.44,670.21,5.5831104]
[1752139749437,2.5542367,671.43,670.21,5.5831104]
[1752139749639,2.5542367,671.42,670.19,5.5831104]
[1752139749837,2.5542367,671.41,670.19,5.5831104]
[1752139750138,2.5542367,671.4,669.99,5.5831104]
[1752139750343,2.5542367,671.39,669.99,5.5831104]
[1752139750537,2.5542367,671.38,669.99,5.5831104]
[1752139750837,2.5542367,671.37,669.99,5.5831104]
[1752139751039,2.5542367,671.36,669.99,5.5831104]
[1752139751239,2.5542367,671.35,669.99,5.5831104]
[1752139751442,2.5542367,671.34,669.99,5.5831104]
[1752139751641,2.5542367,671.33,670.04,5.5831104]
[1752139751841,2.5542367,671.32,670.04,5.5831104]
[1752139752041,2.5542367,671.31,670.04,5.5831104]
[1752139752240,1.5001802,671.3,670.04,5.5831104]
[1752139752444,1.5001802,671.29,670.04,5.5831104]
[1752139752644,1.5001802,671.28,670.04,5.5831104]
[1752139752943,1.5001802,671.27,670.04,5.5831104]
[1752139753144,1.5001802,671.26,670.04,5.5831104]
[1752139753345,1.5001802,671.25,669.98,5.5831104]
[1752139753640,1.054154,671.44,669.98,5.5831104]
[1752139753844,2.5542042,671.43,669.98,5.5831104]
[1752139754045,2.5542042,671.42,669.98,5.5831104]
[1752139754245,2.5542042,671.41,669.9,5.5831104]
[1752139754443,2.5542042,671.4,669.9,5.5831104]
[1752139754643,2.5542042,671.39,669.9,5.5831104]
[1752139754842,2.5542042,671.38,669.78,5.5831104]
[1752139755044,2.5542042,671.37,669.78,5.5831104]
[1752139755345,2.5542042,671.36,669.78,5.5831104]
[1752139755545,2.5542042,671.35,669.78,5.5831104]
[1752139755745,2.5542042,671.34,669.78,5.5831104]
[1752139756044,2.5542042,671.33,669.79,5.5831104]
[1752139756340,2.5542042,671.32,669.79,5.5831104]
[1752139756543,2.5542042,671.31,669.79,5.5831104]
[1752139756747,2.5542042,671.3,669.79,5.5831104]
[1752139756941,1.5000502,671.29,669.79,5.5831104]
[1752139757143,1.5000502,671.28,669.79,5.5831104]
[1752139757347,1.5000502,671.27,669.79,5.5831104]
[1752139757548,1.5000502,671.26,669.8,5.5831104]
[1752139757748,1.5000502,671.25,669.8,5.5831104]
[1752139757948,1.5000502,671.24,669.8,5.5831104]
[1752139758143,1.5000502,671.23,669.8,5.5831104]
[1752139758347,1.5000502,671.22,669.8,5.5831104]
[1752139758549,1.5000502,671.21,669.8,5.5831104]
[1752139758746,1.5000502,671.2,669.8,5.5831104]
[1752139758948,1.5000502,671.19,669.8,5.5831104]
[1752139759150,1.5000502,671.18,669.8,5.5831104]
[1752139759450,1.5000502,671.17,669.76,5.5831104]
[1752139759651,1.5000502,671.16,669.76,5.5831104]
[1752139759851,1.5000502,671.15,669.76,5.5831104]
[1752139760051,1.5000502,671.14,669.82,5.5831104]
[1752139760250,1.5000502,671.13,669.82,5.5831104]
[1752139760447,1.5000502,671.12,669.82,5.5831104]
[1752139760651,1.5000502,671.11,669.81,5.5831104]
[1752139760948,1.0549673,671.36,669.81,5.5831104]
[1752139761148,2.5553461,671.35,669.81,5.5831104]
[1752139761351,2.5553461,671.34,669.81,5.5831104]
[1752139761652,2.5553461,671.33,669.82,5.5831104]
[1752139761851,2.5553461,671.32,669.82,5.5831104]
[1752139762052,2.5553461,671.31,669.82,5.5831104]
[1752139762252,1.6654327,671.4,669.82,5.5831104]
[1752139762253,2.5553461,671.3,669.82,5.5831104]
[1752139762449,2.5553461,671.29,669.82,5.5831104]
[1752139762655,2.5553461,671.28,669.82,5.5831104]
[1752139762854,2.5553461,671.27,669.82,5.5831104]
[1752139763155,2.5553461,671.26,669.79,5.5831104]
[1752139763353,1.5003788,671.25,669.79,5.5831104]
[1752139763554,1.5003788,671.24,669.79,5.5831104]
[1752139763851,1.5003788,671.23,669.86,5.5831104]
[1752139764054,1.5003788,671.22,669.86,5.5831104]
[1752139764254,1.5003788,671.21,669.86,5.5831104]
[1752139764451,1.5003788,671.2,669.86,5.5831104]
[1752139764651,1.5003788,671.19,669.93,5.5831104]
[1752139764856,1.5003788,671.18,669.93,5.5831104]
[1752139765156,1.5003788,671.17,669.94,5.5831104]
[1752139765356,1.5003788,671.16,669.94,5.5831104]
[1752139765557,1.0552077,671.33,669.94,5.5831104]
[1752139765857,2.5562028,671.32,669.94,5.5831104]
[1752139766054,2.5562028,671.31,669.94,5.5831104]
[1752139766252,2.5562028,671.3,669.94,5.5831104]
[1752139766551,2.5562028,671.29,669.94,5.5831104]
[1752139766756,2.5562028,671.28,669.94,5.5831104]
[1752139766954,2.5562028,671.27,669.94,5.5831104]
[1752139767153,2.5562028,671.26,669.94,5.5831104]
[1752139767354,2.5562028,671.25,669.95,5.5831104]
[1752139767555,1.5009951,671.24,669.95,5.5831104]
[1752139767756,1.5009951,671.23,669.95,5.5831104]
[1752139767954,1.5009951,671.22,669.95,5.5831104]
[1752139768159,1.5009951,671.21,669.95,5.5831104]
[1752139768359,1.5009951,671.2,669.95,5.5831104]
[1752139768553,1.5009951,671.19,669.95,5.5831104]
[1752139768757,1.5009951,671.18,669.86,5.5831104]
[1752139768958,1.5009951,671.17,669.86,5.5831104]
[1752139769155,1.5009951,671.16,669.86,5.5831104]
[1752139769357,1.5009951,671.15,669.83,5.5831104]
[1752139769557,1.5009951,671.14,669.83,5.5831104]
[1752139769763,1.5009951,671.13,669.83,5.5831104]
[1752139769960,1.6654327,671.44,669.83,5.5831104]
[1752139770260,3.1672826,671.43,669.83,5.5831104]
[1752139770457,1.5018499,671.42,669.78,5.5831104]
[1752139770656,1.5018499,671.41,669.78,5.5831104]
[1752139770860,1.5018499,671.4,669.78,5.5831104]
[1752139771060,1.5018499,671.39,669.78,5.5831104]
[1752139771257,3.3345449,671.8,669.78,5.5831104]
[1752139771258,1.5018499,671.38,669.78,5.5831104]
[1752139771461,1.5018499,671.37,669.79,5.5831104]
[1752139771657,1.5018499,671.36,669.79,5.5831104]
[1752139771861,1.5018499,671.35,669.79,5.5831104]
[1752139772061,1.5018499,671.34,669.79,5.5831104]
[1752139772361,1.5018499,671.33,669.79,5.5831104]
[1752139772562,1.5018499,671.32,669.79,5.5831104]
[1752139772762,1.5018499,671.31,669.79,5.5831104]
[1752139772960,1.5018499,671.3,669.79,5.5831104]
[1752139773163,1.5018499,671.29,669.79,5.5831104]
[1752139773358,1.5018499,671.28,669.79,5.5831104]
[1752139773562,1.5018499,671.27,669.79,5.5831104]
[1752139773762,1.5018499,671.26,669.79,5.5831104]
[1752139773962,1.5018499,671.25,669.79,5.5831104]
[1752139774159,1.5018499,671.24,669.79,5.5831104]
[1752139774360,1.5018499,671.23,669.79,5.5831104]
[1752139774565,1.5018499,671.22,669.72,5.5831104]
[1752139774767,1.5018499,671.21,669.72,5.5831104]
[1752139775065,1.5018499,671.2,669.72,5.5831104]
[1752139775265,1.5018499,671.19,669.72,5.5831104]
[1752139775467,1.5018499,671.18,669.72,5.5831104]
[1752139775666,1.5018499,671.17,669.73,5.5831104]
[1752139775967,1.5018499,671.16,669.73,5.5831104]
[1752139776265,1.5018499,671.15,669.74,5.5831104]
[1752139776466,1.5018499,671.14,669.74,5.5831104]
[1752139776664,1.5018499,671.13,669.74,5.5831104]
[1752139776863,1.5018499,671.12,669.74,5.5831104]
[1752139777064,1.5018499,671.11,669.74,5.5831104]
[1752139777270,1.6654327,671.42,669.74,5.5831104]
[1752139777271,1.5018499,671.1,669.74,5.5831104]
[1752139777470,1.5018499,671.09,669.74,5.5831104]
[1752139777669,1.5018499,671.08,669.74,5.5831104]
[1752139777969,1.6654327,671.42,669.74,5.5831104]
[1752139778171,1.5028722,671.41,669.74,5.5831104]
[1752139778472,1.5028722,671.4,669.74,5.5831104]
[1752139778671,1.5028722,671.39,669.78,5.5831104]
[1752139778867,1.5028722,671.38,669.78,5.5831104]
[1752139779168,2.5581781,671.37,669.78,5.5831104]
[1752139779469,2.5581781,671.36,669.83,5.5831104]
[1752139779673,2.5581781,671.35,669.83,5.5831104]
[1752139779874,2.5581781,671.34,669.83,5.5831104]
[1752139780074,1.5028722,671.33,669.83,5.5831104]